[Event "Titled Tuesday Blitz March 28 Early 2023"]
[White "Ruge, Edison"]
[Black "Manukian, Artak"]
[WhiteFideId "4401000"]
[BlackFideId "13301373"]
[WhiteElo "2175"]
[BlackElo "2130"]
[Result "0-1"]
[Round "08"]
[TimeControl "180+2"]
[Date "2023.03.28"]
[WhiteClock "0:00:08"]
[BlackClock "0:00:08"]

1. e4 {[%clk 0:03:00]}  c6 {[%clk 0:02:52]} 2. d3 {[%clk 0:02:58]}  d5 {[%clk 0:02:53]} 3. Nd2 {[%clk 0:02:58]}  e5 {[%clk 0:02:53]} 4. Ngf3 {[%clk 0:02:58]}  Bd6 {[%clk 0:02:53]} 5. g3 {[%clk 0:02:58]}  Nf6 {[%clk 0:02:53]} 6. Bg2 {[%clk 0:02:59]}  dxe4 {[%clk 0:02:53]} 7. dxe4 {[%clk 0:02:58]}  O-O {[%clk 0:02:53]} 8. O-O {[%clk 0:02:58]}  Bc7 {[%clk 0:02:53]} 9. Qe2 {[%clk 0:02:55]}  Nbd7 {[%clk 0:02:51]} 10. Nb3 {[%clk 0:02:52]}  Qe7 {[%clk 0:02:50]} 11. Bg5 {[%clk 0:02:51]}  h6 {[%clk 0:02:50]} 12. Bd2 {[%clk 0:02:46]}  a5 {[%clk 0:02:34]} 13. a4 {[%clk 0:02:44]}  Nc5 {[%clk 0:02:28]} 14. Nxc5 {[%clk 0:02:39]}  Qxc5 {[%clk 0:02:29]} 15. Bc3 {[%clk 0:02:37]}  b6 {[%clk 0:02:25]} 16. Rfe1 {[%clk 0:02:35]}  Ba6 {[%clk 0:02:24]} 17. Qe3 {[%clk 0:02:31]}  Qxe3 {[%clk 0:02:22]} 18. Rxe3 {[%clk 0:02:30]}  Rfe8 {[%clk 0:02:20]} 19. Bf1 {[%clk 0:02:28]}  Bxf1 {[%clk 0:02:18]} 20. Kxf1 {[%clk 0:02:28]}  Rad8 {[%clk 0:02:18]} 21. h3 {[%clk 0:02:20]}  Kf8 {[%clk 0:02:12]} 22. Ke2 {[%clk 0:02:20]}  Ke7 {[%clk 0:02:12]} 23. Rd1 {[%clk 0:02:19]}  Rxd1 {[%clk 0:02:11]} 24. Kxd1 {[%clk 0:02:18]}  Rd8+ {[%clk 0:02:12]} 25. Ke2 {[%clk 0:02:18]}  Ke6 {[%clk 0:02:11]} 26. Nh4 {[%clk 0:02:10]}  g6 {[%clk 0:02:11]} 27. Nf3 {[%clk 0:02:08]}  b5 {[%clk 0:02:04]} 28. b3 {[%clk 0:02:05]}  Bb6 {[%clk 0:02:02]} 29. Rd3 {[%clk 0:02:01]}  Nxe4 {[%clk 0:01:53]} 30. Bxe5 {[%clk 0:01:55]}  Rxd3 {[%clk 0:01:45]} 31. cxd3 {[%clk 0:01:54]}  Nxf2 {[%clk 0:01:43]} 32. h4 {[%clk 0:01:43]}  Ng4 {[%clk 0:01:32]} 33. Bf4 {[%clk 0:01:39]}  Kd5 {[%clk 0:01:26]} 34. Bd2 {[%clk 0:01:20]}  Bc7 {[%clk 0:01:07]} 35. Be1 {[%clk 0:01:19]}  Ne5 {[%clk 0:00:52]} 36. Ng1 {[%clk 0:00:51]}  Nd7 {[%clk 0:00:47]} 37. Bc3 {[%clk 0:00:49]}  bxa4 {[%clk 0:00:43]} 38. bxa4 {[%clk 0:00:48]}  Nc5 {[%clk 0:00:36]} 39. Nf3 {[%clk 0:00:46]}  Nxa4 {[%clk 0:00:36]} 40. Bg7 {[%clk 0:00:42]}  Bxg3 {[%clk 0:00:26]} 41. Bxh6 {[%clk 0:00:40]}  Nc3+ {[%clk 0:00:20]} 42. Kd2 {[%clk 0:00:39]}  Nb5 {[%clk 0:00:20]} 43. Bg7 {[%clk 0:00:31]}  a4 {[%clk 0:00:18]} 44. Kc2 {[%clk 0:00:31]}  Bf2 {[%clk 0:00:16]} 45. Ng5 {[%clk 0:00:29]}  f5 {[%clk 0:00:15]} 46. Nh3 {[%clk 0:00:24]}  Bxh4 {[%clk 0:00:15]} 47. Nf4+ {[%clk 0:00:24]}  Kd6 {[%clk 0:00:15]} 48. Nxg6 {[%clk 0:00:24]}  Bg3 {[%clk 0:00:15]} 49. Bf8+ {[%clk 0:00:23]}  Kd7 {[%clk 0:00:13]} 50. Bb4 {[%clk 0:00:19]}  f4 {[%clk 0:00:13]} 51. Ne5+ {[%clk 0:00:18]}  Kc7 {[%clk 0:00:13]} 52. Nf3 {[%clk 0:00:16]}  Kb6 {[%clk 0:00:12]} 53. d4 {[%clk 0:00:16]}  Nc7 {[%clk 0:00:11]} 54. Kd3 {[%clk 0:00:17]}  Nd5 {[%clk 0:00:12]} 55. Bc5+ {[%clk 0:00:17]}  Kb5 {[%clk 0:00:12]} 56. Ke4 {[%clk 0:00:15]}  Nc3+ {[%clk 0:00:10]} 57. Kd3 {[%clk 0:00:14]}  Nd1 {[%clk 0:00:10]} 58. Ne5 {[%clk 0:00:12]}  Nf2+ {[%clk 0:00:10]} 59. Ke2 {[%clk 0:00:12]}  Ne4 {[%clk 0:00:10]} 60. Nd3 {[%clk 0:00:11]}  Nxc5 {[%clk 0:00:10]} 61. dxc5 {[%clk 0:00:10]}  a3 {[%clk 0:00:10]} 62. Kd2 {[%clk 0:00:08]}  a2 {[%clk 0:00:09]} 63. Kc2 {[%clk 0:00:08]}  a1=Q {[%clk 0:00:08]} 0-1


[Site "https://www.chess.com"]

[Event "Titled Tuesday Blitz March 28 Early 2023"]
[White "Rodriguez Santiago, Jaime"]
[Black "Vivas Zamora, Fabian Ernesto"]
[WhiteFideId "3100898"]
[BlackFideId "3902480"]
[WhiteElo "2025"]
[BlackElo "2262"]
[Result "1-0"]
[Round "08"]
[TimeControl "180+2"]
[Date "2023.03.28"]
[WhiteClock "0:00:15"]
[BlackClock "0:00:01"]

1. c4 {[%clk 0:02:58]}  Nf6 {[%clk 0:02:58]} 2. Nc3 {[%clk 0:02:58]}  g6 {[%clk 0:02:55]} 3. g3 {[%clk 0:02:58]}  Bg7 {[%clk 0:02:47]} 4. Bg2 {[%clk 0:02:59]}  c5 {[%clk 0:02:46]} 5. e4 {[%clk 0:02:59]}  Nc6 {[%clk 0:02:43]} 6. Nge2 {[%clk 0:02:59]}  O-O {[%clk 0:02:43]} 7. O-O {[%clk 0:02:59]}  Ne8 {[%clk 0:02:42]} 8. d3 {[%clk 0:02:48]}  Nc7 {[%clk 0:02:40]} 9. f4 {[%clk 0:02:36]}  a6 {[%clk 0:02:40]} 10. a4 {[%clk 0:02:32]}  Ne6 {[%clk 0:02:31]} 11. f5 {[%clk 0:02:24]}  Ned4 {[%clk 0:02:27]} 12. Nxd4 {[%clk 0:02:24]}  Nxd4 {[%clk 0:02:26]} 13. Rb1 {[%clk 0:02:17]}  d6 {[%clk 0:02:22]} 14. g4 {[%clk 0:02:13]}  e6 {[%clk 0:02:03]} 15. Kh1 {[%clk 0:01:48]}  Rb8 {[%clk 0:01:43]} 16. Bf4 {[%clk 0:01:12]}  b5 {[%clk 0:01:36]} 17. axb5 {[%clk 0:01:10]}  axb5 {[%clk 0:01:37]} 18. cxb5 {[%clk 0:01:10]}  Nxb5 {[%clk 0:01:31]} 19. Nxb5 {[%clk 0:01:08]}  Rxb5 {[%clk 0:01:32]} 20. Qd2 {[%clk 0:00:57]}  Qb6 {[%clk 0:01:30]} 21. Rf2 {[%clk 0:00:45]}  Bd4 {[%clk 0:00:40]} 22. Be3 {[%clk 0:00:42]}  c4 {[%clk 0:00:29]} 23. Bxd4 {[%clk 0:00:39]}  Qxd4 {[%clk 0:00:29]} 24. dxc4 {[%clk 0:00:38]}  Qxd2 {[%clk 0:00:08]} 25. Rxd2 {[%clk 0:00:38]}  Rb4 {[%clk 0:00:07]} 26. b3 {[%clk 0:00:37]}  Ba6 {[%clk 0:00:07]} 27. Bf1 {[%clk 0:00:37]}  d5 {[%clk 0:00:05]} 28. exd5 {[%clk 0:00:36]}  exd5 {[%clk 0:00:04]} 29. cxd5 {[%clk 0:00:35]}  Bxf1 {[%clk 0:00:04]} 30. Rxf1 {[%clk 0:00:35]}  Rxg4 {[%clk 0:00:03]} 31. d6 {[%clk 0:00:32]}  Rd8 {[%clk 0:00:03]} 32. d7 {[%clk 0:00:32]}  Kf8 {[%clk 0:00:02]} 33. Re1 {[%clk 0:00:32]}  Rb4 {[%clk 0:00:02]} 34. Re3 {[%clk 0:00:29]}  Rb7 {[%clk 0:00:02]} 35. Red3 {[%clk 0:00:28]}  gxf5 {[%clk 0:00:02]} 36. Kg2 {[%clk 0:00:27]}  Ke7 {[%clk 0:00:03]} 37. Kf3 {[%clk 0:00:28]}  Rb4 {[%clk 0:00:01]} 38. Rd5 {[%clk 0:00:26]}  Ke6 {[%clk 0:00:01]} 39. Rd6+ {[%clk 0:00:25]}  Ke7 {[%clk 0:00:01]} 40. R6d3 {[%clk 0:00:25]}  Rb7 {[%clk 0:00:01]} 41. Re2+ {[%clk 0:00:26]}  Kf6 {[%clk 0:00:02]} 42. Rd6+ {[%clk 0:00:24]}  Kg5 {[%clk 0:00:02]} 43. Rg2+ {[%clk 0:00:24]}  Kh5 {[%clk 0:00:02]} 44. Rgd2 {[%clk 0:00:16]}  Rxb3+ {[%clk 0:00:02]} 45. Kf4 {[%clk 0:00:17]}  Rb5 {[%clk 0:00:01]} 46. R2d3 {[%clk 0:00:15]} 1-0


[Site "https://www.chess.com"]

[Event "Titled Tuesday Blitz March 28 Early 2023"]
[White "Sowul, Bartosz"]
[Black "Quirke, Jeffrey"]
[WhiteFideId "1137590"]
[BlackFideId "2013029"]
[WhiteElo "2188"]
[BlackElo "2241"]
[Result "1-0"]
[Round "08"]
[TimeControl "180+2"]
[Date "2023.03.28"]
[WhiteClock "0:00:54"]
[BlackClock "0:00:13"]

1. e4 {[%clk 0:02:59]}  Nf6 {[%clk 0:02:59]} 2. e5 {[%clk 0:02:57]}  Nd5 {[%clk 0:02:58]} 3. d4 {[%clk 0:02:58]}  d6 {[%clk 0:02:59]} 4. Nf3 {[%clk 0:02:58]}  dxe5 {[%clk 0:02:58]} 5. Nxe5 {[%clk 0:02:58]}  c6 {[%clk 0:02:59]} 6. Be2 {[%clk 0:02:58]}  Bf5 {[%clk 0:02:58]} 7. O-O {[%clk 0:02:59]}  e6 {[%clk 0:02:59]} 8. c4 {[%clk 0:02:58]}  Nb4 {[%clk 0:02:49]} 9. Na3 {[%clk 0:02:45]}  Nd7 {[%clk 0:02:48]} 10. Nf3 {[%clk 0:02:45]}  Be7 {[%clk 0:02:45]} 11. Bd2 {[%clk 0:02:35]}  O-O {[%clk 0:02:42]} 12. c5 {[%clk 0:02:28]}  Nd5 {[%clk 0:02:19]} 13. Nc4 {[%clk 0:02:28]}  Qc7 {[%clk 0:02:16]} 14. b4 {[%clk 0:02:23]}  h6 {[%clk 0:01:51]} 15. a4 {[%clk 0:02:17]}  Bg4 {[%clk 0:01:31]} 16. Nfe5 {[%clk 0:02:09]}  Nxe5 {[%clk 0:01:31]} 17. dxe5 {[%clk 0:02:08]}  Bxe2 {[%clk 0:01:29]} 18. Qxe2 {[%clk 0:02:08]}  a5 {[%clk 0:01:03]} 19. Ra3 {[%clk 0:01:52]}  axb4 {[%clk 0:01:01]} 20. Rg3 {[%clk 0:01:48]}  Kh8 {[%clk 0:00:50]} 21. Bxh6 {[%clk 0:01:28]}  gxh6 {[%clk 0:00:47]} 22. Qh5 {[%clk 0:01:27]}  Kh7 {[%clk 0:00:37]} 23. Nd6 {[%clk 0:01:03]}  Bxd6 {[%clk 0:00:18]} 24. cxd6 {[%clk 0:01:00]}  Qd8 {[%clk 0:00:13]} 25. Rh3 {[%clk 0:00:54]} 1-0


[Site "https://www.chess.com"]

[Event "Titled Tuesday Blitz March 28 Early 2023"]
[White "Zacurdajev, Dmitry"]
[Black "Winkels, Marcel"]
[WhiteFideId "4196309"]
[BlackFideId "1003887"]
[WhiteElo "2179"]
[BlackElo "1900"]
[Result "1-0"]
[Round "08"]
[TimeControl "180+2"]
[Date "2023.03.28"]
[WhiteClock "0:00:27"]
[BlackClock "0:00:12"]

1. d4 {[%clk 0:03:00]}  Nf6 {[%clk 0:02:58]} 2. c4 {[%clk 0:02:54]}  g6 {[%clk 0:02:58]} 3. Nc3 {[%clk 0:02:54]}  Bg7 {[%clk 0:02:58]} 4. e4 {[%clk 0:02:54]}  d6 {[%clk 0:02:59]} 5. Nf3 {[%clk 0:02:54]}  O-O {[%clk 0:02:58]} 6. Be2 {[%clk 0:02:55]}  c5 {[%clk 0:02:57]} 7. O-O {[%clk 0:02:55]}  cxd4 {[%clk 0:02:57]} 8. Nxd4 {[%clk 0:02:54]}  Nc6 {[%clk 0:02:57]} 9. Be3 {[%clk 0:02:54]}  Nxd4 {[%clk 0:02:56]} 10. Bxd4 {[%clk 0:02:54]}  Be6 {[%clk 0:02:57]} 11. Rc1 {[%clk 0:02:51]}  Qa5 {[%clk 0:02:57]} 12. b3 {[%clk 0:02:49]}  Rfc8 {[%clk 0:02:54]} 13. f3 {[%clk 0:02:39]}  a6 {[%clk 0:02:54]} 14. Qd2 {[%clk 0:02:35]}  b5 {[%clk 0:02:48]} 15. cxb5 {[%clk 0:02:26]}  axb5 {[%clk 0:02:45]} 16. Rfd1 {[%clk 0:02:16]}  b4 {[%clk 0:02:27]} 17. Na4 {[%clk 0:02:14]}  Nd7 {[%clk 0:02:23]} 18. Bxg7 {[%clk 0:02:08]}  Kxg7 {[%clk 0:02:22]} 19. Qd4+ {[%clk 0:02:07]}  f6 {[%clk 0:02:20]} 20. Bc4 {[%clk 0:02:02]}  Bxc4 {[%clk 0:02:16]} 21. Rxc4 {[%clk 0:02:03]}  Rxc4 {[%clk 0:01:46]} 22. Qxc4 {[%clk 0:02:03]}  Ne5 {[%clk 0:01:40]} 23. Qc2 {[%clk 0:01:27]}  Qa6 {[%clk 0:01:31]} 24. Rc1 {[%clk 0:00:56]}  Nd3 {[%clk 0:01:26]} 25. Rd1 {[%clk 0:00:42]}  Qa7+ {[%clk 0:01:24]} 26. Kf1 {[%clk 0:00:42]}  Ne5 {[%clk 0:01:12]} 27. Qf2 {[%clk 0:00:39]}  Qxf2+ {[%clk 0:00:58]} 28. Kxf2 {[%clk 0:00:40]}  Rc8 {[%clk 0:00:58]} 29. Rd2 {[%clk 0:00:40]}  Rc1 {[%clk 0:00:57]} 30. Nb6 {[%clk 0:00:39]}  Ra1 {[%clk 0:00:53]} 31. Nd5 {[%clk 0:00:39]}  Kf7 {[%clk 0:00:50]} 32. Nxb4 {[%clk 0:00:39]}  Nd7 {[%clk 0:00:46]} 33. Nc6 {[%clk 0:00:32]}  Nc5 {[%clk 0:00:45]} 34. b4 {[%clk 0:00:28]}  Na4 {[%clk 0:00:44]} 35. b5 {[%clk 0:00:28]}  Nc3 {[%clk 0:00:43]} 36. b6 {[%clk 0:00:26]}  Rb1 {[%clk 0:00:42]} 37. b7 {[%clk 0:00:26]}  Rxb7 {[%clk 0:00:12]} 38. Nd8+ {[%clk 0:00:27]} 1-0


[Site "https://www.chess.com"]

[Event "Titled Tuesday Blitz March 28 Early 2023"]
[White "Van Osch, Mees"]
[Black "Manukyan, Sargis A."]
[WhiteFideId "1035967"]
[BlackFideId "13303970"]
[WhiteElo "2324"]
[BlackElo "2187"]
[Result "0-1"]
[Round "08"]
[TimeControl "180+2"]
[Date "2023.03.28"]
[WhiteClock "0:00:02"]
[BlackClock "0:00:46"]

1. e4 {[%clk 0:02:55]}  c5 {[%clk 0:03:00]} 2. Nf3 {[%clk 0:02:52]}  d6 {[%clk 0:03:00]} 3. d4 {[%clk 0:02:53]}  cxd4 {[%clk 0:03:01]} 4. Nxd4 {[%clk 0:02:54]}  Nf6 {[%clk 0:03:02]} 5. Nc3 {[%clk 0:02:54]}  g6 {[%clk 0:03:02]} 6. Be3 {[%clk 0:02:54]}  Bg7 {[%clk 0:03:03]} 7. f3 {[%clk 0:02:55]}  O-O {[%clk 0:03:04]} 8. Qd2 {[%clk 0:02:54]}  Nc6 {[%clk 0:03:04]} 9. h4 {[%clk 0:02:55]}  d5 {[%clk 0:03:04]} 10. h5 {[%clk 0:02:49]}  dxe4 {[%clk 0:03:03]} 11. h6 {[%clk 0:02:29]}  Bh8 {[%clk 0:03:02]} 12. Nxc6 {[%clk 0:02:29]}  Qxd2+ {[%clk 0:02:59]} 13. Bxd2 {[%clk 0:02:30]}  bxc6 {[%clk 0:03:00]} 14. fxe4 {[%clk 0:02:30]}  Ng4 {[%clk 0:02:57]} 15. Be2 {[%clk 0:02:23]}  Be6 {[%clk 0:02:56]} 16. Rf1 {[%clk 0:02:04]}  Rfd8 {[%clk 0:02:39]} 17. O-O-O {[%clk 0:02:02]}  Rab8 {[%clk 0:02:23]} 18. Bf4 {[%clk 0:01:51]}  Be5 {[%clk 0:02:16]} 19. Rxd8+ {[%clk 0:01:27]}  Rxd8 {[%clk 0:02:15]} 20. Bxg4 {[%clk 0:01:28]}  Bxf4+ {[%clk 0:01:51]} 21. Rxf4 {[%clk 0:01:29]}  g5 {[%clk 0:01:52]} 22. Bxe6 {[%clk 0:01:14]}  gxf4 {[%clk 0:01:51]} 23. Bc4 {[%clk 0:01:11]}  Rd6 {[%clk 0:01:51]} 24. Ne2 {[%clk 0:01:01]}  e5 {[%clk 0:01:48]} 25. Ng1 {[%clk 0:00:53]}  Rxh6 {[%clk 0:01:47]} 26. Nf3 {[%clk 0:00:53]}  Rg6 {[%clk 0:01:11]} 27. Nxe5 {[%clk 0:00:53]}  Rxg2 {[%clk 0:01:11]} 28. Bxf7+ {[%clk 0:00:37]}  Kg7 {[%clk 0:01:10]} 29. Bc4 {[%clk 0:00:37]}  h5 {[%clk 0:01:08]} 30. Nf3 {[%clk 0:00:27]}  Rf2 {[%clk 0:01:05]} 31. Nh4 {[%clk 0:00:25]}  Kf6 {[%clk 0:01:04]} 32. Kd1 {[%clk 0:00:20]}  Kg5 {[%clk 0:01:04]} 33. Nf5 {[%clk 0:00:19]}  h4 {[%clk 0:01:01]} 34. Ke1 {[%clk 0:00:15]}  Rxc2 {[%clk 0:01:00]} 35. Bf1 {[%clk 0:00:14]}  Rxb2 {[%clk 0:01:00]} 36. Nd4 {[%clk 0:00:15]}  Rxa2 {[%clk 0:00:59]} 37. Nxc6 {[%clk 0:00:15]}  f3 {[%clk 0:00:57]} 38. e5 {[%clk 0:00:11]}  Kf4 {[%clk 0:00:57]} 39. e6 {[%clk 0:00:05]}  f2+ {[%clk 0:00:45]} 40. Kd1 {[%clk 0:00:05]}  Ra1+ {[%clk 0:00:45]} 41. Ke2 {[%clk 0:00:02]}  Kg3 {[%clk 0:00:46]} 0-1


[Site "https://www.chess.com"]

[Event "Titled Tuesday Blitz March 28 Early 2023"]
[White "Lorenzo De La Riva, Lazaro"]
[Black "Reprintsev, Alexander"]
[WhiteFideId "2268809"]
[BlackFideId "14100541"]
[WhiteElo "2294"]
[BlackElo "2229"]
[Result "1-0"]
[Round "08"]
[TimeControl "180+2"]
[Date "2023.03.28"]
[WhiteClock "0:00:26"]
[BlackClock "0:00:05"]

1. d4 {[%clk 0:02:14]}  d5 {[%clk 0:02:54]} 2. Nc3 {[%clk 0:02:15]}  Nf6 {[%clk 0:02:52]} 3. Bf4 {[%clk 0:02:15]}  a6 {[%clk 0:02:50]} 4. e4 {[%clk 0:02:13]}  dxe4 {[%clk 0:02:49]} 5. f3 {[%clk 0:02:12]}  c5 {[%clk 0:02:38]} 6. d5 {[%clk 0:02:06]}  e6 {[%clk 0:02:28]} 7. fxe4 {[%clk 0:02:05]}  exd5 {[%clk 0:02:24]} 8. Nxd5 {[%clk 0:02:04]}  Nxd5 {[%clk 0:02:23]} 9. exd5 {[%clk 0:02:05]}  Bd6 {[%clk 0:02:23]} 10. Qf3 {[%clk 0:01:57]}  Bxf4 {[%clk 0:02:20]} 11. Qxf4 {[%clk 0:01:58]}  Qa5+ {[%clk 0:02:17]} 12. Qd2 {[%clk 0:01:51]}  Qxd2+ {[%clk 0:02:11]} 13. Kxd2 {[%clk 0:01:52]}  b5 {[%clk 0:02:07]} 14. a4 {[%clk 0:01:50]}  b4 {[%clk 0:02:03]} 15. Nf3 {[%clk 0:01:49]}  Bb7 {[%clk 0:02:02]} 16. Bc4 {[%clk 0:01:44]}  Nd7 {[%clk 0:02:02]} 17. a5 {[%clk 0:01:43]}  O-O-O {[%clk 0:02:00]} 18. Rad1 {[%clk 0:01:14]}  Nf6 {[%clk 0:01:52]} 19. Kc1 {[%clk 0:01:14]}  Rhe8 {[%clk 0:01:26]} 20. d6 {[%clk 0:01:13]}  Rd7 {[%clk 0:01:07]} 21. Rhe1 {[%clk 0:00:57]}  Rxe1 {[%clk 0:01:05]} 22. Rxe1 {[%clk 0:00:58]}  Rxd6 {[%clk 0:01:04]} 23. Bxf7 {[%clk 0:00:58]}  Ne4 {[%clk 0:00:45]} 24. Bc4 {[%clk 0:00:56]}  Kc7 {[%clk 0:00:36]} 25. Bd3 {[%clk 0:00:54]}  Nf6 {[%clk 0:00:32]} 26. Ng5 {[%clk 0:00:52]}  Bd5 {[%clk 0:00:19]} 27. g3 {[%clk 0:00:48]}  h6 {[%clk 0:00:18]} 28. Nh3 {[%clk 0:00:46]}  g5 {[%clk 0:00:18]} 29. Nf2 {[%clk 0:00:46]}  c4 {[%clk 0:00:17]} 30. Bf5 {[%clk 0:00:46]}  Kc6 {[%clk 0:00:17]} 31. Re7 {[%clk 0:00:45]}  Kb5 {[%clk 0:00:16]} 32. Rg7 {[%clk 0:00:41]}  Kxa5 {[%clk 0:00:16]} 33. Rg6 {[%clk 0:00:42]}  Ne8 {[%clk 0:00:14]} 34. Rxd6 {[%clk 0:00:36]}  Nxd6 {[%clk 0:00:15]} 35. Bd7 {[%clk 0:00:37]}  Kb6 {[%clk 0:00:15]} 36. Ng4 {[%clk 0:00:36]}  h5 {[%clk 0:00:14]} 37. Nf6 {[%clk 0:00:37]}  Bc6 {[%clk 0:00:13]} 38. Bxc6 {[%clk 0:00:36]}  Kxc6 {[%clk 0:00:14]} 39. Nxh5 {[%clk 0:00:37]}  a5 {[%clk 0:00:13]} 40. Nf6 {[%clk 0:00:33]}  a4 {[%clk 0:00:11]} 41. h4 {[%clk 0:00:33]}  gxh4 {[%clk 0:00:10]} 42. gxh4 {[%clk 0:00:34]}  Nf5 {[%clk 0:00:10]} 43. h5 {[%clk 0:00:34]}  Kc5 {[%clk 0:00:10]} 44. Ng4 {[%clk 0:00:31]}  a3 {[%clk 0:00:07]} 45. bxa3 {[%clk 0:00:31]}  bxa3 {[%clk 0:00:07]} 46. h6 {[%clk 0:00:30]}  c3 {[%clk 0:00:04]} 47. Kb1 {[%clk 0:00:29]}  Ne7 {[%clk 0:00:04]} 48. Ne5 {[%clk 0:00:27]}  Kd5 {[%clk 0:00:04]} 49. h7 {[%clk 0:00:28]}  Kxe5 {[%clk 0:00:04]} 50. h8=Q+ {[%clk 0:00:27]}  Kd5 {[%clk 0:00:05]} 51. Qxc3 {[%clk 0:00:26]} 1-0


[Site "https://www.chess.com"]

[Event "Titled Tuesday Blitz March 28 Early 2023"]
[White "Baches Garcia, Guillermo"]
[Black "Ovezdurdyyeva, Jemal"]
[WhiteFideId "2209764"]
[BlackFideId "14001888"]
[WhiteElo "2447"]
[BlackElo "2043"]
[Result "1-0"]
[Round "08"]
[TimeControl "180+2"]
[Date "2023.03.28"]
[WhiteClock "0:00:11"]
[BlackClock "0:00:06"]

1. Nc3 {[%clk 0:03:00]}  Nf6 {[%clk 0:02:59]} 2. d4 {[%clk 0:03:00]}  e6 {[%clk 0:02:58]} 3. e4 {[%clk 0:03:00]}  d6 {[%clk 0:02:50]} 4. f4 {[%clk 0:02:55]}  g6 {[%clk 0:02:46]} 5. Nf3 {[%clk 0:02:48]}  Bg7 {[%clk 0:02:46]} 6. Bd3 {[%clk 0:02:46]}  c5 {[%clk 0:02:42]} 7. e5 {[%clk 0:02:36]}  dxe5 {[%clk 0:02:39]} 8. dxe5 {[%clk 0:02:29]}  Nd5 {[%clk 0:02:37]} 9. Ne4 {[%clk 0:02:18]}  O-O {[%clk 0:02:34]} 10. a3 {[%clk 0:02:13]}  Qc7 {[%clk 0:02:28]} 11. Nd6 {[%clk 0:02:06]}  Bd7 {[%clk 0:02:17]} 12. c4 {[%clk 0:02:02]}  Ne7 {[%clk 0:02:09]} 13. O-O {[%clk 0:01:57]}  f6 {[%clk 0:02:05]} 14. exf6 {[%clk 0:01:44]}  Bxf6 {[%clk 0:02:02]} 15. Ne4 {[%clk 0:01:39]}  Bg7 {[%clk 0:02:00]} 16. Nfg5 {[%clk 0:01:23]}  Nf5 {[%clk 0:01:39]} 17. Rb1 {[%clk 0:01:19]}  b6 {[%clk 0:01:31]} 18. b4 {[%clk 0:01:17]}  cxb4 {[%clk 0:01:30]} 19. axb4 {[%clk 0:01:17]}  Nc6 {[%clk 0:01:29]} 20. Kh1 {[%clk 0:01:11]}  Rad8 {[%clk 0:01:22]} 21. Qe1 {[%clk 0:01:09]}  Bc8 {[%clk 0:01:09]} 22. Be2 {[%clk 0:00:53]}  Ncd4 {[%clk 0:01:02]} 23. Bb2 {[%clk 0:00:49]}  Bb7 {[%clk 0:00:59]} 24. Bxd4 {[%clk 0:00:42]}  Nxd4 {[%clk 0:00:59]} 25. Bg4 {[%clk 0:00:41]}  Qe7 {[%clk 0:00:50]} 26. c5 {[%clk 0:00:31]}  h6 {[%clk 0:00:19]} 27. Nf3 {[%clk 0:00:30]}  h5 {[%clk 0:00:19]} 28. Bh3 {[%clk 0:00:30]}  Nxf3 {[%clk 0:00:15]} 29. Rxf3 {[%clk 0:00:29]}  Bh6 {[%clk 0:00:16]} 30. Qe3 {[%clk 0:00:22]}  bxc5 {[%clk 0:00:13]} 31. bxc5 {[%clk 0:00:22]}  Bxe4 {[%clk 0:00:13]} 32. Qxe4 {[%clk 0:00:21]}  Qxc5 {[%clk 0:00:13]} 33. Qxe6+ {[%clk 0:00:21]}  Kh7 {[%clk 0:00:13]} 34. Rb7+ {[%clk 0:00:17]}  Bg7 {[%clk 0:00:13]} 35. Rf1 {[%clk 0:00:15]}  Qd4 {[%clk 0:00:05]} 36. g3 {[%clk 0:00:14]}  Qd5+ {[%clk 0:00:05]} 37. Qxd5 {[%clk 0:00:13]}  Rxd5 {[%clk 0:00:06]} 38. Rxa7 {[%clk 0:00:13]}  Rd2 {[%clk 0:00:06]} 39. Rb1 {[%clk 0:00:12]}  Re8 {[%clk 0:00:06]} 40. Bf1 {[%clk 0:00:11]}  Red8 {[%clk 0:00:05]} 41. Rbb7 {[%clk 0:00:11]}  Rg8 {[%clk 0:00:06]} 42. Rf7 {[%clk 0:00:11]}  Kh6 {[%clk 0:00:06]} 43. Rfd7 {[%clk 0:00:11]}  g5 {[%clk 0:00:06]} 44. fxg5+ {[%clk 0:00:10]}  Kg6 {[%clk 0:00:07]} 45. Rxd2 {[%clk 0:00:10]}  Kxg5 {[%clk 0:00:06]} 46. Ra5+ {[%clk 0:00:11]} 1-0


[Site "https://www.chess.com"]

[Event "Titled Tuesday Blitz March 28 Early 2023"]
[White "Begunov, Konstantin"]
[Black "Thiel, Thomas"]
[WhiteFideId "4118510"]
[BlackFideId "4615964"]
[WhiteElo "2079"]
[BlackElo "2224"]
[Result "1-0"]
[Round "08"]
[TimeControl "180+2"]
[Date "2023.03.28"]
[WhiteClock "0:00:09"]
[BlackClock "0:00:01"]

1. d4 {[%clk 0:03:00]}  Nf6 {[%clk 0:02:56]} 2. c4 {[%clk 0:03:00]}  g6 {[%clk 0:02:55]} 3. f3 {[%clk 0:03:00]}  c5 {[%clk 0:02:47]} 4. dxc5 {[%clk 0:02:59]}  Na6 {[%clk 0:02:43]} 5. e4 {[%clk 0:02:57]}  Nxc5 {[%clk 0:02:42]} 6. Be3 {[%clk 0:02:58]}  Qa5+ {[%clk 0:02:31]} 7. Nc3 {[%clk 0:02:52]}  d6 {[%clk 0:02:27]} 8. a3 {[%clk 0:02:43]}  Ncd7 {[%clk 0:02:16]} 9. b4 {[%clk 0:02:38]}  Qc7 {[%clk 0:02:11]} 10. Nb5 {[%clk 0:02:29]}  Qd8 {[%clk 0:02:08]} 11. Nxa7 {[%clk 0:02:26]}  Bg7 {[%clk 0:02:06]} 12. Ra2 {[%clk 0:02:01]}  O-O {[%clk 0:02:03]} 13. Nh3 {[%clk 0:01:56]}  Nb6 {[%clk 0:01:54]} 14. Nxc8 {[%clk 0:01:54]}  Rxc8 {[%clk 0:01:51]} 15. Qb3 {[%clk 0:01:50]}  Nfd7 {[%clk 0:01:44]} 16. a4 {[%clk 0:01:21]}  Ne5 {[%clk 0:01:42]} 17. Rc2 {[%clk 0:01:20]}  Qd7 {[%clk 0:01:25]} 18. a5 {[%clk 0:01:18]}  Na8 {[%clk 0:01:23]} 19. Be2 {[%clk 0:01:11]}  Nc7 {[%clk 0:01:22]} 20. O-O {[%clk 0:01:11]}  Na6 {[%clk 0:01:21]} 21. Nf4 {[%clk 0:01:01]}  Bh6 {[%clk 0:01:18]} 22. Rb1 {[%clk 0:00:52]}  e6 {[%clk 0:01:08]} 23. Kh1 {[%clk 0:00:43]}  Qe7 {[%clk 0:01:07]} 24. Nh3 {[%clk 0:00:32]}  Bxe3 {[%clk 0:01:03]} 25. Qxe3 {[%clk 0:00:33]}  Nb8 {[%clk 0:00:46]} 26. Nf2 {[%clk 0:00:26]}  Nbc6 {[%clk 0:00:43]} 27. f4 {[%clk 0:00:23]}  Nd7 {[%clk 0:00:41]} 28. Rd2 {[%clk 0:00:20]}  Rfe8 {[%clk 0:00:35]} 29. Qc3 {[%clk 0:00:18]}  e5 {[%clk 0:00:31]} 30. f5 {[%clk 0:00:17]}  Nd4 {[%clk 0:00:30]} 31. Rxd4 {[%clk 0:00:15]}  exd4 {[%clk 0:00:27]} 32. Qxd4 {[%clk 0:00:16]}  Ne5 {[%clk 0:00:26]} 33. Rd1 {[%clk 0:00:15]}  Red8 {[%clk 0:00:22]} 34. Ng4 {[%clk 0:00:13]}  Nxg4 {[%clk 0:00:20]} 35. Bxg4 {[%clk 0:00:14]}  Qe5 {[%clk 0:00:18]} 36. fxg6 {[%clk 0:00:13]}  Rb8 {[%clk 0:00:04]} 37. gxf7+ {[%clk 0:00:12]}  Kxf7 {[%clk 0:00:01]} 38. Qd2 {[%clk 0:00:09]} 1-0


[Site "https://www.chess.com"]